Workbook

Sheet Sheet1
A1: 附件
A2: 贵安新区2023年面向贵阳贵安公开考调公务员和机关人员面试成绩、总成绩及进入体检环节人员名单
A3: 序号 | B3: 姓名 | C3: 准考证号 | D3: 单位 | E3: 报考岗位代码 | F3: 笔试成绩 | G3: 笔试成绩40% | H3: 面试成绩 | I3: 面试成绩60% | J3: 笔试、面试成绩 | K3: 综合排名 | L3: 是否进入体检
A4: 1 | B4: 张 伟 | C4: 10101500130 | D4: 0001贵安新区市场监督管理局高峰分局 | E4: 01四级主任科员及以下 | F4: =VLOOKUP(C4:C17,[1]Sheet1!$B$4:$G$62,6,FALSE) -> 73.5 | G4: =F4*0.4 -> 29.40 | H4: 81.60 | I4: =H4*0.6 -> 48.96 | J4: =G4+I4 -> 78.36 | K4: 1 | L4: 是
A5: 2 | B5: 张长宇 | C5: 10101500107 | D5: 0003贵安新区组织人事部 | E5: 01一级主任科员及以下 | F5: =VLOOKUP(C5:C18,[1]Sheet1!$B$4:$G$62,6,FALSE) -> 70.0 | G5: =F5*0.4 -> 28.00 | H5: 86.00 | I5: =H5*0.6 -> 51.60 | J5: =G5+I5 -> 79.60 | K5: 1 | L5: 是
A6: 3 | B6: 文庭庭 | C6: 10101500129 | D6: 0005贵安新区城乡建设局 | E6: 01一级主任科员及以下 | F6: =VLOOKUP(C6:C19,[1]Sheet1!$B$4:$G$62,6,FALSE) -> 77.0 | G6: =F6*0.4 -> 30.80 | H6: 81.20 | I6: =H6*0.6 -> 48.72 | J6: =G6+I6 -> 79.52 | K6: 1 | L6: 是
A7: 4 | B7: 毛福萍 | C7: 10101500123 | D7: 0005贵安新区城乡建设局 | E7: 01一级主任科员及以下 | F7: =VLOOKUP(C7:C20,[1]Sheet1!$B$4:$G$62,6,FALSE) -> 73.5 | G7: =F7*0.4 -> 29.40 | H7: 83.00 | I7: =H7*0.6 -> 49.80 | J7: =G7+I7 -> 79.20 | K7: 2 | L7: 是
A8: 5 | B8: 江俊维 | C8: 10101500109 | D8: 0005贵安新区城乡建设局 | E8: 01一级主任科员及以下 | F8: =VLOOKUP(C8:C21,[1]Sheet1!$B$4:$G$62,6,FALSE) -> 73.0 | G8: =F8*0.4 -> 29.20 | H8: 80.60 | I8: =H8*0.6 -> 48.36 | J8: =G8+I8 -> 77.56 | K8: 3
A9: 6 | B9: 王 珊 | C9: 10101500116 | D9: 0006贵安新区大数据和科技创新局 | E9: 02一级主任科员及以下 | F9: =VLOOKUP(C9:C23,[1]Sheet1!$B$4:$G$62,6,FALSE) -> 69.5 | G9: =F9*0.4 -> 27.80 | H9: 82.40 | I9: =H9*0.6 -> 49.44 | J9: =G9+I9 -> 77.24 | K9: 1 | L9: 是
A10: 7 | B10: 朱丽娟 | C10: 10101500212 | D10: 0006贵安新区大数据和科技创新局 | E10: 02一级主任科员及以下 | F10: =VLOOKUP(C10:C22,[1]Sheet1!$B$4:$G$62,6,FALSE) -> 71.0 | G10: =F10*0.4 -> 28.40 | H10: 78.40 | I10: =H10*0.6 -> 47.04 | J10: =G10+I10 -> 75.44 | K10: 2 | L10: 是
A11: 8 | B11: 罗 敏 | C11: 10101500207 | D11: 0007贵安新区社会事业管理局 | E11: 01一级主任科员及以下 | F11: =VLOOKUP(C11:C24,[1]Sheet1!$B$4:$G$62,6,FALSE) -> 74.0 | G11: =F11*0.4 -> 29.60 | H11: 82.80 | I11: =H11*0.6 -> 49.68 | J11: =G11+I11 -> 79.28 | K11: 1 | L11: 是
A12: 9 | B12: 谢 奔 | C12: 10101500110 | D12: 0007贵安新区社会事业管理局 | E12: 01一级主任科员及以下 | F12: =VLOOKUP(C12:C25,[1]Sheet1!$B$4:$G$62,6,FALSE) -> 71.0 | G12: =F12*0.4 -> 28.40 | H12: 81.60 | I12: =H12*0.6 -> 48.96 | J12: =G12+I12 -> 77.36 | K12: 2 | L12: 是
A13: 10 | B13: 戢 滢 | C13: 10101500226 | D13: 0007贵安新区社会事业管理局 | E13: 02一级主任科员及以下 | F13: =VLOOKUP(C13:C27,[1]Sheet1!$B$4:$G$62,6,FALSE) -> 71.0 | G13: =F13*0.4 -> 28.40 | H13: 81.40 | I13: =H13*0.6 -> 48.84 | J13: =G13+I13 -> 77.24 | K13: 1 | L13: 是
A14: 11 | B14: 李杰宁 | C14: 10101500127 | D14: 0007贵安新区社会事业管理局 | E14: 02一级主任科员及以下 | F14: =VLOOKUP(C14:C26,[1]Sheet1!$B$4:$G$62,6,FALSE) -> 74.5 | G14: =F14*0.4 -> 29.80 | H14: 缺考 | I14: 缺考 | J14: =G14 -> 29.80 | K14: 2
A15: 12 | B15: 黄金霞 | C15: 10101500208 | D15: 0009贵安新区统筹城乡发展局 | E15: 01一级主任科员及以下 | F15: =VLOOKUP(C15:C28,[1]Sheet1!$B$4:$G$62,6,FALSE) -> 73.0 | G15: =F15*0.4 -> 29.20 | H15: 80.80 | I15: =H15*0.6 -> 48.48 | J15: =G15+I15 -> 77.68 | K15: 1 | L15: 是
A16: 13 | B16: 李 璞 | C16: 10101500202 | D16: 0009贵安新区统筹城乡发展局 | E16: 02一级主任科员及以下 | F16: =VLOOKUP(C16:C29,[1]Sheet1!$B$4:$G$62,6,FALSE) -> 77.0 | G16: =F16*0.4 -> 30.80 | H16: 84.00 | I16: =H16*0.6 -> 50.40 | J16: =G16+I16 -> 81.20 | K16: 1 | L16: 是
A17: 14 | B17: 谢晓东 | C17: 10101500122 | D17: 0009贵安新区统筹城乡发展局 | E17: 02一级主任科员及以下 | F17: =VLOOKUP(C17:C30,[1]Sheet1!$B$4:$G$62,6,FALSE) -> 73.5 | G17: =F17*0.4 -> 29.40 | H17: 80.60 | I17: =H17*0.6 -> 48.36 | J17: =G17+I17 -> 77.76 | K17: 2 | L17: 是
